fUSD/lending_fUSD_20260526
["ID","MTS","AMOUNT","RATE_DAILY","PERIOD"]
[423043185,1779792644000,-8769.0441674,0.00033145,2]
[423043186,1779792644000,-1889.17745736,0.00033145,2]
[423043191,1779792644000,-1233.28452998,0.000335,2]
[423043182,1779792644000,-350.0,0.00033014,5]
[423043180,1779792644000,-2000.0,0.00033,7]
[423043184,1779792644000,-527.09018781,0.00033113,2]
[423043181,1779792644000,-527.09018781,0.00033001,2]
[423043183,1779792644000,-500.0,0.00033074,120]
[423043266,1779792645000,-300.0,0.00035568,2]
[423043264,1779792645000,-300.0,0.00035568,2]
[423043260,1779792645000,-300.0,0.00035567,10]
[423043259,1779792645000,-580.0,0.0003551,2]
[423043263,1779792645000,-1633.90603547,0.00035568,2]
[423043262,1779792645000,-309.97993275,0.00035568,2]
[423043258,1779792645000,-580.0,0.0003551,2]
[423043256,1779792645000,-580.0,0.0003551,2]
[423043267,1779792645000,-300.0,0.00035568,2]
[423043257,1779792645000,-580.0,0.0003551,2]
[423043280,1779792645000,-1263.82495173,0.00035568,2]
[423043261,1779792645000,-300.0,0.00035568,2]
[423043268,1779792645000,-300.0,0.00035568,2]
[423043292,1779792645000,-300.0,0.00035568,2]
[423043279,1779792645000,-300.0,0.00035568,2]
[423043270,1779792645000,-300.0,0.00035568,2]
[423043271,1779792645000,-499.85668198,0.00035568,2]
[423043276,1779792645000,-894.55274135,0.00035568,2]
[423043278,1779792645000,-300.0,0.00035568,2]
[423043273,1779792645000,-300.0,0.00035568,2]
[423043272,1779792645000,-300.0,0.00035568,2]
[423043275,1779792645000,-300.0,0.00035568,2]
[423043277,1779792645000,-300.0,0.00035568,2]
[423043274,1779792645000,-605.24124213,0.00035568,2]
[423043281,1779792645000,-300.0,0.00035568,2]
[423043283,1779792645000,-865.53028801,0.00035568,2]
[423043265,1779792645000,-452.48121198,0.00035568,2]
[423043269,1779792645000,-300.0,0.00035568,2]
[423043255,1779792645000,-20779.24,0.000355,2]
[423043226,1779792645000,-400.0,0.00034481,2]
[423043248,1779792645000,-150.0,0.00035124,2]
[423043282,1779792645000,-300.05702055,0.00035568,2]
[423043225,1779792645000,-400.0,0.00034453,2]
[423043224,1779792645000,-400.0,0.00034453,2]
[423043227,1779792645000,-400.0,0.00034481,2]
[423043228,1779792645000,-470.94830105,0.00034481,2]
[423043237,1779792645000,-1500.0,0.00034795,2]
[423043234,1779792645000,-154.0,0.00034755,30]
[423043239,1779792645000,-350.0,0.00034931,5]
[423043229,1779792645000,-189.0,0.00034732,30]
[423043230,1779792645000,-488.0,0.00034732,30]
[423043238,1779792645000,-292.5,0.00034799,2]
[423043232,1779792645000,-151.0,0.00034755,30]
[423043233,1779792645000,-350.0,0.00034755,30]
[423043231,1779792645000,-156.0,0.00034755,30]
[423043235,1779792645000,-588.0,0.00034755,30]
[423043240,1779792645000,-2735.0,0.00034945,2]
[423043236,1779792645000,-467.30356881,0.00034771,2]
[423043242,1779792645000,-300.0,0.00034999,10]
[423043253,1779792645000,-157.86609764,0.00035353,2]
[423043252,1779792645000,-2316.0,0.00035344,11]
[423043243,1779792645000,-500.0,0.00034999,120]
[423043241,1779792645000,-300.0,0.00034999,10]
[423043251,1779792645000,-512.29,0.00035308,2]
[423043249,1779792645000,-497.3682862,0.00035183,2]
[423043247,1779792645000,-10150.61581423,0.00035,7]
[423043250,1779792645000,-160.0,0.000352,26]
[423043245,1779792645000,-4759.36983209,0.00035,2]
[423043244,1779792645000,-51585.9352629,0.00035,7]
[423043246,1779792645000,-1952.50745436,0.00035,2]
[423043254,1779792645000,-300.0,0.00035499,10]
[423043284,1779792645000,-950.20540785,0.00035568,2]
[423043307,1779792645000,-300.0,0.00035568,2]
[423043285,1779792645000,-309.98994128,0.00035568,2]
[423043328,1779792645000,-894.55274135,0.00035568,2]
[423043326,1779792645000,-528.42557,0.00035568,2]
[423043321,1779792645000,-300.0,0.00035568,2]
[423043324,1779792645000,-300.0,0.00035568,2]
[423043318,1779792645000,-492.59556593,0.00035568,2]
[423043325,1779792645000,-300.0,0.00035568,2]
[423043320,1779792645000,-300.0,0.00035568,2]
[423043322,1779792645000,-605.24124213,0.00035568,2]
[423043331,1779792645000,-300.0,0.00035568,2]
[423043286,1779792645000,-300.0,0.00035568,2]
[423043342,1779792645000,-865.53028801,0.00035568,2]
[423043332,1779792645000,-300.96252262,0.00035568,2]
[423043343,1779792645000,-950.21744792,0.00035568,2]
[423043327,1779792645000,-300.0,0.00035568,2]
[423043333,1779792645000,-300.0,0.00035568,2]
[423043334,1779792645000,-300.0,0.00035568,2]
[423043335,1779792645000,-300.0,0.00035568,2]
[423043337,1779792645000,-1263.82495173,0.00035568,2]
[423043338,1779792645000,-300.0,0.00035568,2]
[423043336,1779792645000,-300.0,0.00035568,2]
[423043339,1779792645000,-527.56699294,0.00035568,2]
[423043345,1779792645000,-309.98994128,0.00035568,2]
[423043344,1779792645000,-1148.70755237,0.00035568,2]
[423043350,1779792645000,-300.0,0.00035568,2]
[423043347,1779792645000,-300.0,0.00035568,2]
[423043346,1779792645000,-300.0,0.00035568,2]
[423043348,1779792645000,-1633.90603547,0.00035568,2]
[423043349,1779792645000,-300.0,0.00035568,2]
[423043340,1779792645000,-300.0,0.00035568,2]
[423043323,1779792645000,-300.0,0.00035568,2]
[423043341,1779792645000,-300.0,0.00035568,2]
[423043329,1779792645000,-300.0,0.00035568,2]
[423043288,1779792645000,-300.0,0.00035568,2]
[423043290,1779792645000,-594.73329586,0.00035568,2]
[423043330,1779792645000,-302.1844563,0.00035568,2]
[423043287,1779792645000,-1633.90603547,0.00035568,2]
[423043289,1779792645000,-300.0,0.00035568,2]
[423043293,1779792645000,-464.43646992,0.00035568,2]
[423043297,1779792645000,-300.0,0.00035568,2]
[423043294,1779792645000,-578.19877315,0.00035568,2]
[423043304,1779792645000,-300.0,0.00035568,2]
[423043298,1779792645000,-300.0,0.00035568,2]
[423043295,1779792645000,-452.48121198,0.00035568,2]
[423043300,1779792645000,-300.0,0.00035568,2]
[423043299,1779792645000,-300.0,0.00035568,2]
[423043305,1779792645000,-300.0,0.00035568,2]
[423043291,1779792645000,-300.0,0.00035568,2]
[423043303,1779792645000,-310.24516055,0.00035568,2]
[423043302,1779792645000,-484.71261076,0.00035568,2]
[423043319,1779792645000,-300.0,0.00035568,2]
[423043313,1779792645000,-300.0,0.00035568,2]
[423043314,1779792645000,-300.0,0.00035568,2]
[423043312,1779792645000,-300.0,0.00035568,2]
[423043311,1779792645000,-300.0,0.00035568,2]
[423043315,1779792645000,-300.0,0.00035568,2]
[423043317,1779792645000,-493.32888988,0.00035568,2]
[423043310,1779792645000,-1096.16608281,0.00035568,2]
[423043308,1779792645000,-300.0,0.00035568,2]
[423043309,1779792645000,-300.0,0.00035568,2]
[423043306,1779792645000,-300.0,0.00035568,2]
[423043316,1779792645000,-300.0,0.00035568,2]
[423043301,1779792645000,-300.0,0.00035568,2]
[423043383,1779792646000,-300.0,0.00035568,2]
[423043375,1779792646000,-300.0,0.00035568,2]
[423043387,1779792646000,-300.0,0.00035568,2]
[423043384,1779792646000,-493.32888988,0.00035568,2]
[423043376,1779792646000,-300.0,0.00035568,2]
[423043381,1779792646000,-300.0,0.00035568,2]
[423043374,1779792646000,-300.0,0.00035568,2]
[423043379,1779792646000,-300.0,0.00035568,2]
[423043385,1779792646000,-300.0,0.00035568,2]
[423043386,1779792646000,-300.0,0.00035568,2]
[423043382,1779792646000,-300.0,0.00035568,2]
[423043395,1779792646000,-300.0,0.00035568,2]
[423043393,1779792646000,-528.42557,0.00035568,2]
[423043390,1779792646000,-605.24124213,0.00035568,2]
[423043389,1779792646000,-300.0,0.00035568,2]
[423043388,1779792646000,-300.0,0.00035568,2]
[423043392,1779792646000,-300.0,0.00035568,2]
[423043394,1779792646000,-894.55274135,0.00035568,2]
[423043397,1779792646000,-300.0,0.00035568,2]
[423043396,1779792646000,-726.99445071,0.00035568,2]
[423043398,1779792646000,-302.1844563,0.00035568,2]
[423043399,1779792646000,-300.0,0.00035568,2]
[423043391,1779792646000,-300.0,0.00035568,2]
[423043377,1779792646000,-300.0,0.00035568,2]
[423043401,1779792646000,-300.96252262,0.00035568,2]
[423043373,1779792646000,-1096.16608281,0.00035568,2]
[423043355,1779792646000,-300.0,0.00035568,2]
[423043351,1779792646000,-594.73329586,0.00035568,2]
[423043352,1779792646000,-300.0,0.00035568,2]
[423043353,1779792646000,-300.0,0.00035568,2]
[423043354,1779792646000,-464.43646992,0.00035568,2]
[423043356,1779792646000,-578.19877315,0.00035568,2]
[423043360,1779792646000,-300.0,0.00035568,2]
[423043367,1779792646000,-300.0,0.00035568,2]
[423043359,1779792646000,-300.0,0.00035568,2]
[423043358,1779792646000,-452.48121198,0.00035568,2]
[423043357,1779792646000,-300.0,0.00035568,2]
[423043361,1779792646000,-300.0,0.00035568,2]
[423043365,1779792646000,-310.24516055,0.00035568,2]
[423043368,1779792646000,-300.0,0.00035568,2]
[423043364,1779792646000,-300.0,0.00035568,2]
[423043362,1779792646000,-300.0,0.00035568,2]
[423043363,1779792646000,-484.71261076,0.00035568,2]
[423043366,1779792646000,-300.0,0.00035568,2]
[423043372,1779792646000,-300.0,0.00035568,2]
[423043371,1779792646000,-300.0,0.00035568,2]
[423043370,1779792646000,-300.0,0.00035568,2]
[423043369,1779792646000,-300.0,0.00035568,2]
[423043380,1779792646000,-300.0,0.00035568,2]
[423043378,1779792646000,-300.0,0.00035568,2]
[423043400,1779792646000,-300.0,0.00035568,2]
[423043424,1779792646000,-300.0,0.00035568,2]
[423043403,1779792646000,-300.0,0.00035568,2]
[423043431,1779792646000,-545.07983248,0.00035568,2]
[423043429,1779792646000,-300.0,0.00035568,2]
[423043433,1779792646000,-300.0,0.00035568,2]
[423043436,1779792646000,-300.0,0.00035568,2]
[423043432,1779792646000,-300.0,0.00035568,2]
[423043448,1779792646000,-350.0,0.00035755,30]
[423043438,1779792646000,-4514.19372464,0.0003561,2]
[423043437,1779792646000,-484.71261076,0.00035568,2]
[423043439,1779792646000,-155.35,0.00035616,60]
[423043442,1779792646000,-321.25806271,0.00035683,120]
[423043440,1779792646000,-624.01,0.00035616,2]
[423043441,1779792646000,-157.86609764,0.00035627,2]
[423043447,1779792646000,-151.0,0.00035755,30]
[423043445,1779792646000,-488.0,0.00035732,30]
[423043446,1779792646000,-156.0,0.00035755,30]
[423043443,1779792646000,-533.23,0.000357,7]
[423043450,1779792646000,-588.0,0.00035755,30]
[423043449,1779792646000,-154.0,0.00035755,30]
[423043452,1779792646000,-500.0,0.00035836,120]
[423043451,1779792646000,-1490.8,0.00035836,2]
[423043454,1779792646000,-1924.1584,0.00035837,2]
[423043453,1779792646000,-647.53,0.00035836,7]
[423043402,1779792646000,-300.0,0.00035568,2]
[423043434,1779792646000,-300.0,0.00035568,2]
[423043430,1779792646000,-452.48121198,0.00035568,2]
[423043444,1779792646000,-189.0,0.00035732,30]
[423043427,1779792646000,-300.0,0.00035568,2]
[423043435,1779792646000,-300.0,0.00035568,2]
[423043406,1779792646000,-300.0,0.00035568,2]
[423043404,1779792646000,-300.0,0.00035568,2]
[423043407,1779792646000,-300.0,0.00035568,2]
[423043405,1779792646000,-300.0,0.00035568,2]
[423043408,1779792646000,-300.0,0.00035568,2]
[423043411,1779792646000,-527.56699294,0.00035568,2]
[423043412,1779792646000,-300.0,0.00035568,2]
[423043409,1779792646000,-1263.82495173,0.00035568,2]
[423043410,1779792646000,-344.4170137,0.00035568,2]
[423043413,1779792646000,-300.0,0.00035568,2]
[423043418,1779792646000,-300.0,0.00035568,2]
[423043414,1779792646000,-865.53028801,0.00035568,2]
[423043415,1779792646000,-950.21744792,0.00035568,2]
[423043421,1779792646000,-300.0,0.00035568,2]
[423043425,1779792646000,-300.0,0.00035568,2]
[423043420,1779792646000,-1633.90603547,0.00035568,2]
[423043416,1779792646000,-1148.70755237,0.00035568,2]
[423043426,1779792646000,-464.43646992,0.00035568,2]
[423043428,1779792646000,-578.19877315,0.00035568,2]
[423043422,1779792646000,-300.0,0.00035568,2]
[423043417,1779792646000,-309.98994128,0.00035568,2]
[423043419,1779792646000,-300.0,0.00035568,2]
[423043423,1779792646000,-594.73329586,0.00035568,2]
[423043505,1779792647000,-500.0,0.00036,2]
[423043485,1779792647000,-500.0,0.00036,2]
[423043486,1779792647000,-500.0,0.00036,2]
[423043487,1779792647000,-500.0,0.00036,2]
[423043489,1779792647000,-500.0,0.00036,2]
[423043491,1779792647000,-500.0,0.00036,2]
[423043490,1779792647000,-840.06,0.00036,2]
[423043488,1779792647000,-500.0,0.00036,2]
[423043493,1779792647000,-500.0,0.00036,2]
[423043492,1779792647000,-500.0,0.00036,2]
[423043495,1779792647000,-500.0,0.00036,2]
[423043494,1779792647000,-500.0,0.00036,2]
[423043514,1779792647000,-753.88,0.00036,2]
[423043502,1779792647000,-837.04,0.00036,2]
[423043504,1779792647000,-500.0,0.00036,2]
[423043503,1779792647000,-500.0,0.00036,2]
[423043499,1779792647000,-500.0,0.00036,2]
[423043501,1779792647000,-500.0,0.00036,2]
[423043497,1779792647000,-500.0,0.00036,2]
[423043500,1779792647000,-500.0,0.00036,2]
[423043498,1779792647000,-500.0,0.00036,2]
[423043507,1779792647000,-500.0,0.00036,2]
[423043508,1779792647000,-500.0,0.00036,2]
[423043512,1779792647000,-502.58,0.00036,2]
[423043483,1779792647000,-500.0,0.00036,2]
[423043496,1779792647000,-500.0,0.00036,2]
[423043484,1779792647000,-500.0,0.00036,2]
[423043456,1779792647000,-157.86609764,0.00035901,2]
[423043482,1779792647000,-500.0,0.00036,2]
[423043455,1779792647000,-350.0,0.0003589,5]
[423043510,1779792647000,-724.69,0.00036,2]
[423043457,1779792647000,-400.0,0.00035951,2]
[423043458,1779792647000,-400.0,0.00035951,2]
[423043459,1779792647000,-300.0,0.00035999,10]
[423043460,1779792647000,-500.0,0.00036,2]
[423043469,1779792647000,-500.0,0.00036,2]
[423043471,1779792647000,-500.0,0.00036,2]
[423043470,1779792647000,-500.0,0.00036,2]
[423043467,1779792647000,-500.0,0.00036,2]
[423043462,1779792647000,-500.0,0.00036,2]
[423043465,1779792647000,-500.0,0.00036,2]
[423043464,1779792647000,-500.0,0.00036,2]
[423043466,1779792647000,-500.0,0.00036,2]
[423043468,1779792647000,-500.0,0.00036,2]
[423043463,1779792647000,-500.0,0.00036,2]
[423043473,1779792647000,-500.0,0.00036,2]
[423043474,1779792647000,-500.0,0.00036,2]
[423043475,1779792647000,-500.0,0.00036,2]
[423043480,1779792647000,-500.0,0.00036,2]
[423043476,1779792647000,-500.0,0.00036,2]
[423043472,1779792647000,-500.0,0.00036,2]
[423043478,1779792647000,-510.1,0.00036,2]
[423043477,1779792647000,-500.0,0.00036,2]
[423043481,1779792647000,-500.0,0.00036,2]
[423043479,1779792647000,-500.0,0.00036,2]
[423043509,1779792647000,-500.0,0.00036,2]
[423043461,1779792647000,-500.0,0.00036,2]
[423043506,1779792647000,-500.0,0.00036,2]
[423043543,1779792647000,-1640.42014877,0.000368,2]
[423043551,1779792647000,-1490.8,0.00036972,2]
[423043545,1779792647000,-2000.0,0.00036849,30]
[423043547,1779792647000,-150.0,0.0003688,2]
[423043544,1779792647000,-191.6166446,0.000368,2]
[423043549,1779792647000,-200.0,0.0003691,30]
[423043546,1779792647000,-350.0,0.00036849,5]
[423043548,1779792647000,-194.02972501,0.00036899,2]
[423043550,1779792647000,-568.3751095,0.00036927,2]
[423043553,1779792647000,-647.53,0.00036972,7]
[423043557,1779792647000,-5000.0,0.00036973,2]
[423043558,1779792647000,-5000.0,0.00036973,2]
[423043554,1779792647000,-5000.0,0.00036973,2]
[423043555,1779792647000,-5000.0,0.00036973,2]
[423043564,1779792647000,-181.517,0.00037,2]
[423043561,1779792647000,-5000.0,0.00036973,2]
[423043569,1779792647000,-668.65185756,0.00037021,2]
[423043556,1779792647000,-5000.0,0.00036973,2]
[423043559,1779792647000,-5000.0,0.00036973,2]
[423043560,1779792647000,-5000.0,0.00036973,2]
[423043563,1779792647000,-150.0,0.00037,2]
[423043566,1779792647000,-168.75906586,0.00037,2]
[423043565,1779792647000,-365.0,0.00037,2]
[423043568,1779792647000,-533.23,0.00037,7]
[423043567,1779792647000,-4500.0,0.00037,2]
[423043552,1779792647000,-500.0,0.00036972,120]
[423043542,1779792647000,-319.39468312,0.00036784,5]
[423043562,1779792647000,-157.86609764,0.00036997,2]
[423043540,1779792647000,-1924.1584,0.00036733,2]
[423043541,1779792647000,-398.67136598,0.00036766,120]
[423043513,1779792647000,-335.06,0.00036,2]
[423043516,1779792647000,-766.09,0.00036,14]
[423043511,1779792647000,-2832.43925769,0.00036,2]
[423043517,1779792647000,-945.93,0.00036011,2]
[423043518,1779792647000,-283.78,0.00036011,2]
[423043528,1779792647000,-160.0,0.000362,31]
[423043520,1779792647000,-400.0,0.00036048,2]
[423043521,1779792647000,-400.0,0.00036048,2]
[423043523,1779792647000,-5800.0,0.00036065,2]
[423043519,1779792647000,-400.0,0.00036048,2]
[423043522,1779792647000,-1360.19537918,0.00036053,2]
[423043527,1779792647000,-157.86609764,0.00036175,2]
[423043515,1779792647000,-502.58,0.00036,2]
[423043524,1779792647000,-4821.09724644,0.00036065,2]
[423043525,1779792647000,-200.0,0.000361,30]
[423043537,1779792647000,-5113.95130202,0.00036576,2]
[423043531,1779792647000,-157.86609764,0.00036449,2]
[423043536,1779792647000,-5000.0,0.00036576,2]
[423043538,1779792647000,-2000.0,0.000367,7]
[423043533,1779792647000,-30043.97611207,0.000365,10]
[423043535,1779792647000,-5000.0,0.00036576,2]
[423043532,1779792647000,-314.0,0.00036464,2]
[423043529,1779792647000,-176.47,0.000363,30]
[423043539,1779792647000,-157.86609764,0.00036723,2]
[423043530,1779792647000,-310523.0,0.000364,30]
[423043526,1779792647000,-423.6,0.00036153,30]
[423043534,1779792647000,-5000.0,0.00036576,2]
[423043599,1779792648000,-176.47,0.000376,30]
[423043594,1779792648000,-300.0,0.0003748,2]
[423043596,1779792648000,-157.86609764,0.00037545,2]
[423043597,1779792648000,-4414.55143921,0.0003759,2]
[423043598,1779792648000,-310523.0,0.000376,30]
[423043590,1779792648000,-300.0,0.0003748,2]
[423043600,1779792648000,-400.0,0.00037615,2]
[423043595,1779792648000,-312.57,0.0003748,2]
[423043614,1779792648000,-2384.42254473,0.0003783,2]
[423043605,1779792648000,-2594.0822499,0.00037761,2]
[423043603,1779792648000,-157.75,0.000377,30]
[423043604,1779792648000,-200.0,0.0003771,30]
[423043602,1779792648000,-1924.1584,0.00037629,2]
[423043601,1779792648000,-400.0,0.00037615,2]
[423043606,1779792648000,-5000.0,0.00037768,2]
[423043608,1779792648000,-5000.0,0.00037768,2]
[423043607,1779792648000,-5000.0,0.00037768,2]
[423043609,1779792648000,-5000.0,0.00037768,2]
[423043610,1779792648000,-5000.0,0.00037768,2]
[423043613,1779792648000,-157.86609764,0.00037819,2]
[423043593,1779792648000,-300.0,0.0003748,2]
[423043584,1779792648000,-5000.0,0.00037371,2]
[423043591,1779792648000,-300.0,0.0003748,2]
[423043611,1779792648000,-5000.0,0.00037768,2]
[423043572,1779792648000,-467.30356881,0.00037063,2]
[423043576,1779792648000,-157.86609764,0.00037271,2]
[423043570,1779792648000,-695.39793187,0.00037021,2]
[423043574,1779792648000,-160.0,0.000372,36]
[423043573,1779792648000,-3636.0,0.00037168,2]
[423043571,1779792648000,-150.0,0.00037053,2]
[423043575,1779792648000,-766.09,0.000372,14]
[423043577,1779792648000,-226.81455841,0.000373,30]
[423043579,1779792648000,-455.51702839,0.000373,30]
[423043588,1779792648000,-400.0,0.00037449,2]
[423043581,1779792648000,-5000.0,0.00037371,2]
[423043580,1779792648000,-455.51702839,0.000373,30]
[423043583,1779792648000,-5000.0,0.00037371,2]
[423043586,1779792648000,-5000.0,0.00037371,2]
[423043582,1779792648000,-5000.0,0.00037371,2]
[423043587,1779792648000,-5000.0,0.00037371,2]
[423043585,1779792648000,-5000.0,0.00037371,2]
[423043589,1779792648000,-300.0,0.0003748,2]
[423043592,1779792648000,-300.0,0.0003748,2]
[423043578,1779792648000,-455.51702839,0.000373,30]
[423043612,1779792648000,-350.0,0.00037808,5]
[423043616,1779792648000,-355.95390918,0.000379,2]
[423043638,1779792648000,-310.24516055,0.00035568,2]
[423043640,1779792648000,-267066.51268607,0.00038146,3]
[423043639,1779792648000,-300.0,0.00035568,2]
[423043644,1779792648000,-5000.0,0.00038166,2]
[423043646,1779792648000,-5000.0,0.00038166,2]
[423043648,1779792648000,-5000.0,0.00038166,2]
[423043647,1779792648000,-5000.0,0.00038166,2]
[423043645,1779792648000,-5000.0,0.00038166,2]
[423043655,1779792648000,-1689.5,0.00038356,2]
[423043654,1779792648000,-200.0,0.00038356,60]
[423043650,1779792648000,-500.0,0.00038253,44]
[423043652,1779792648000,-2608.0912,0.000383,29]
[423043656,1779792648000,-19234.67559057,0.00038356,10]
[423043651,1779792648000,-533.23,0.000383,7]
[423043649,1779792648000,-500.0,0.00038253,44]
[423043658,1779792648000,-488.50988815,0.00038356,2]
[423043657,1779792648000,-500.0,0.00038356,2]
[423043659,1779792648000,-674.57,0.00038356,2]
[423043615,1779792648000,-205.91238881,0.0003788,2]
[423043637,1779792648000,-312.737088,0.00033069,21]
[423043636,1779792648000,-500.0,0.00025699,2]
[423043653,1779792648000,-500.0,0.00038355,120]
[423043634,1779792648000,-500.0,0.00025699,2]
[423043627,1779792648000,-423.6,0.00038125,30]
[423043635,1779792648000,-500.0,0.00025699,2]
[423043618,1779792648000,-5000.0,0.00038,120]
[423043620,1779792648000,-10000.0,0.00038,2]
[423043617,1779792648000,-5000.0,0.00038,120]
[423043626,1779792648000,-157.86609764,0.00038093,2]
[423043621,1779792648000,-232926.9986,0.00038,2]
[423043625,1779792648000,-509.05903187,0.00038065,2]
[423043623,1779792648000,-1585.50982,0.00038,2]
[423043624,1779792648000,-184.393103,0.00038057,40]
[423043619,1779792648000,-2000.0,0.00038,2]
[423043629,1779792648000,-8057.99538234,0.00038146,3]
[423043628,1779792648000,-151.14559393,0.00038143,2]
[423043631,1779792648000,-1142.78299172,0.00038146,3]
[423043630,1779792648000,-2902.6010603,0.00038146,3]
[423043633,1779792648000,-500.0,0.00025699,2]
[423043641,1779792648000,-1490.8,0.00038165,2]
[423043642,1779792648000,-407.9356241,0.00038165,120]
[423043622,1779792648000,-7761.86112084,0.00038,2]
[423043643,1779792648000,-647.53,0.00038165,7]
[423043632,1779792648000,-500.0,0.00025699,2]
[423043686,1779792649000,-500.0,0.00038356,2]
[423043703,1779792649000,-155.33999999,0.00038356,60]
[423043696,1779792649000,-500.0,0.00038356,2]
[423043704,1779792649000,-1742.47,0.00038356,2]
[423043701,1779792649000,-500.0,0.00038356,2]
[423043697,1779792649000,-500.0,0.00038356,2]
[423043693,1779792649000,-500.0,0.00038356,2]
[423043694,1779792649000,-500.0,0.00038356,2]
[423043692,1779792649000,-500.0,0.00038356,2]
[423043698,1779792649000,-500.0,0.00038356,2]
[423043695,1779792649000,-500.0,0.00038356,2]
[423043702,1779792649000,-512.864116,0.00038356,2]
[423043710,1779792649000,-1742.47,0.00038356,2]
[423043699,1779792649000,-500.0,0.00038356,2]
[423043705,1779792649000,-1742.47,0.00038356,2]
[423043716,1779792649000,-1742.47,0.00038356,2]
[423043706,1779792649000,-1742.47,0.00038356,2]
[423043717,1779792649000,-1742.47,0.00038356,2]
[423043709,1779792649000,-1742.47,0.00038356,2]
[423043707,1779792649000,-1742.47,0.00038356,2]
[423043708,1779792649000,-1742.47,0.00038356,2]
[423043711,1779792649000,-1742.47,0.00038356,2]
[423043714,1779792649000,-1742.47,0.00038356,2]
[423043713,1779792649000,-1742.47,0.00038356,2]
[423043712,1779792649000,-1742.47,0.00038356,2]
[423043700,1779792649000,-500.0,0.00038356,2]
[423043685,1779792649000,-500.0,0.00038356,2]
[423043663,1779792649000,-674.57,0.00038356,2]
[423043683,1779792649000,-500.0,0.00038356,2]
[423043668,1779792649000,-674.57,0.00038356,2]
[423043661,1779792649000,-674.57,0.00038356,2]
[423043662,1779792649000,-674.57,0.00038356,2]
[423043660,1779792649000,-674.57,0.00038356,2]
[423043665,1779792649000,-674.57,0.00038356,2]
[423043667,1779792649000,-674.57,0.00038356,2]
[423043666,1779792649000,-674.57,0.00038356,2]
[423043664,1779792649000,-674.57,0.00038356,2]
[423043669,1779792649000,-674.57,0.00038356,2]
[423043672,1779792649000,-674.57,0.00038356,2]
[423043671,1779792649000,-674.57,0.00038356,2]
[423043675,1779792649000,-674.57,0.00038356,2]
[423043691,1779792649000,-500.0,0.00038356,2]
[423043670,1779792649000,-674.57,0.00038356,2]
[423043678,1779792649000,-674.57,0.00038356,2]
[423043679,1779792649000,-674.57,0.00038356,2]
[423043673,1779792649000,-674.57,0.00038356,2]
[423043674,1779792649000,-674.57,0.00038356,2]
[423043676,1779792649000,-674.57,0.00038356,2]
[423043681,1779792649000,-674.57,0.00038356,2]
[423043690,1779792649000,-500.0,0.00038356,2]
[423043680,1779792649000,-674.57,0.00038356,2]
[423043689,1779792649000,-500.0,0.00038356,2]
[423043682,1779792649000,-674.60270224,0.00038356,2]
[423043687,1779792649000,-500.0,0.00038356,2]
[423043684,1779792649000,-500.0,0.00038356,2]
[423043677,1779792649000,-674.57,0.00038356,2]
[423043715,1779792649000,-1742.47,0.00038356,2]